bitfinex/quotes_SOLUSD_20251216
["timestamp","ask_amount","ask_price","bid_price","bid_amount"]
[1765860407401,12.48710358,125.94,125.91,8.7]
[1765860407605,12.48710358,125.94,125.92,0.66]
[1765860407804,12.48710358,125.94,125.93,8.7]
[1765860408304,12.62926515,125.94,125.93,8.7]
[1765860412600,0.14216157,125.95,125.93,9.36]
[1765860412789,4.68859341,125.95,125.94,0.66]
[1765860413382,12.628252,125.95,125.94,0.66]
[1765860413794,12.62875155,125.95,125.93,0.66]
[1765860414008,21.12941091,125.95,125.94,9.36]
[1765860414202,25.67584275,125.95,125.94,9.36]
[1765860415406,21.12941091,125.95,125.94,9.36]
[1765860415709,25.67584275,125.95,125.94,8.7]
[1765860416111,26.36584275,125.95,125.94,8.7]
[1765860416606,26.36584275,125.95,125.9,61.9]
[1765860416607,50.76142107,125.95,125.9,61.9]
[1765860416812,0.14216157,125.93,125.91,8.7]
[1765860417018,8.08371176,125.92,125.91,8.7]
[1765860417715,8.77371176,125.92,125.91,8.7]
[1765860417898,11.68663304,125.92,125.91,8.7]
[1765860418621,11.68663304,125.92,125.86,0.66]
[1765860418622,0.14216157,125.91,125.86,0.66]
[1765860418799,0.83216157,125.91,125.88,8.7]
[1765860418998,0.14216157,125.89,125.88,8.7]
[1765860420424,3.05508285,125.89,125.88,8.7]
[1765860421329,10.99852553,125.89,125.88,8.7]
[1765860423720,0.14216157,125.89,125.88,9.39]
[1765860424020,7.94242715,125.91,125.88,9.39]
[1765860424194,7.94242715,125.91,125.89,0.69]
[1765860424195,0.14216157,125.9,125.89,0.69]
[1765860424399,3.05508285,125.9,125.89,0.69]
[1765860426330,0.14216157,125.9,125.89,0.69]
[1765860427525,10.9978946,125.9,125.88,8.7]
[1765860427914,10.9978946,125.9,125.88,9.39]
[1765860428730,0.14216157,125.9,125.88,9.39]
[1765860429031,0.14216157,125.89,125.88,9.39]
[1765860429205,3.05508285,125.89,125.88,8.7]
[1765860429405,3.05508285,125.89,125.88,9.39]
[1765860430110,7.94312058,125.9,125.88,9.39]
[1765860430311,0.14216157,125.9,125.89,0.69]
[1765860432349,2.91292128,125.9,125.89,8.72]
[1765860432629,3.05508285,125.9,125.89,8.72]
[1765860433414,16.81217405,125.9,125.89,8.72]
[1765860433615,28.63504025,125.9,125.89,8.72]
[1765860433921,16.81217405,125.9,125.89,8.72]
[1765860434834,24.7549858,125.9,125.89,8.72]
[1765860435737,21.84206452,125.9,125.89,8.72]
[1765860435936,24.7549858,125.9,125.89,8.72]
[1765860436937,0.14216157,125.89,125.85,0.1]
[1765860437242,3.05681693,125.86,125.85,8.82]
[1765860437929,11.00215301,125.86,125.85,8.82]
[1765860438237,11.71215301,125.86,125.85,8.82]
[1765860438410,11.71215301,125.86,125.85,0.1]
[1765860440612,0.14216157,125.85,125.84,0.1]
[1765860440814,13.18925277,125.83,125.82,1e-08]
[1765860441038,0.14216157,125.82,125.8,0.1]
[1765860441339,3.05681693,125.81,125.8,0.1]
[1765860441525,20.00077822,125.81,125.8,0.1]
[1765860442230,25.03461662,125.81,125.8,0.1]
[1765860442449,27.94927198,125.81,125.8,0.1]
[1765860444945,2.91465536,125.81,125.8,0.79]
[1765860445115,10.86314912,125.81,125.8,0.79]
[1765860445312,10.86314912,125.81,125.8,0.1]
[1765860445718,11.00531069,125.81,125.8,0.1]
[1765860446626,2.91465536,125.82,125.8,0.79]
[1765860446848,15.96174656,125.83,125.8,0.79]
[1765860447141,2.91465536,125.82,125.8,0.79]
[1765860448959,3.05681693,125.81,125.8,0.79]
[1765860449657,11.00531069,125.81,125.8,0.79]
[1765860449953,11.00531069,125.81,125.8,0.1]
[1765860450325,11.71531069,125.81,125.8,0.1]
[1765860450549,11.00531069,125.81,125.8,0.1]
[1765860450928,10.86268113,125.82,125.8,0.79]
[1765860451649,10.86216455,125.83,125.8,0.79]
[1765860451840,0.14216157,125.82,125.8,0.79]
[1765860453450,0.14216157,125.82,125.81,8.72]
[1765860454056,11.00467895,125.82,125.81,8.72]
[1765860454430,31.59433401,125.82,125.8,0.1]
[1765860454635,3.77681693,125.81,125.8,0.1]
[1765860455150,11.72531069,125.81,125.8,0.1]
[1765860455749,11.00531069,125.81,125.8,0.1]
[1765860459254,2.91465536,125.82,125.8,0.77]
[1765860459460,0.14216157,125.81,125.8,0.77]
[1765860459643,0.14216157,125.81,125.8,9.49]
[1765860460441,2.91465536,125.82,125.8,9.49]
[1765860460641,3.05681693,125.82,125.81,0.67]
[1765860461656,0.14216157,125.82,125.81,0.67]
[1765860461850,3.05681693,125.82,125.81,0.67]
[1765860463039,0.14216157,125.82,125.81,0.67]
[1765860466062,0.14216157,125.82,125.81,8.72]
[1765860468067,11.72467895,125.82,125.78,70.62]
[1765860468252,2.91465536,125.8,125.78,8.72]
[1765860468565,0.14216157,125.79,125.78,8.72]
[1765860469263,8.0919191,125.79,125.78,8.72]
[1765860470763,0.14216157,125.79,125.78,8.72]
[1765860471847,8.0919191,125.79,125.78,8.72]
[1765860472050,0.14216157,125.79,125.78,8.72]
[1765860473043,0.14216157,125.78,125.77,0.1]
[1765860475067,8.09255113,125.78,125.77,0.1]
[1765860476063,11.00720649,125.78,125.77,0.1]
[1765860477149,11.72720649,125.78,125.77,0.1]
[1765860477650,11.72720649,125.78,125.77,1e-08]
[1765860478472,71.35512825,125.78,125.72,8.72]
[1765860478647,2.91465536,125.73,125.72,8.72]
[1765860478960,0.14216157,125.72,125.69,9.49]
[1765860479356,12.66165224,125.72,125.7,0.67]
[1765860479740,0.14216157,125.74,125.7,0.67]
[1765860479940,4.56470559,125.73,125.7,0.67]
[1765860480144,0.14216157,125.74,125.7,0.67]
[1765860480346,4.56470559,125.72,125.7,0.67]
[1765860480773,27.83521552,125.74,125.7,0.67]
[1765860480944,4.56470559,125.73,125.7,0.67]
[1765860481461,7.9541839,125.72,125.7,0.67]
[1765860484067,7.95357245,125.73,125.7,8.62538477]
[1765860484541,7.95357245,125.73,125.71,0.72]
[1765860484946,24.44482512,125.76,125.72,8.72]
[1765860485146,7.95188369,125.76,125.72,8.72]
[1765860485383,7.95188369,125.76,125.73,0.72]
[1765860485551,0.14216157,125.75,125.73,0.72]
[1765860485755,7.95188369,125.76,125.73,0.72]
[1765860485980,0.14216157,125.75,125.73,0.72]
[1765860486153,7.95188369,125.76,125.73,8.67344756]
[1765860486354,13.7270912,125.77,125.73,8.67344756]
[1765860486355,12.51586117,125.77,125.73,8.67344756]
[1765860486551,5.24470559,125.76,125.72,9.44]
[1765860486754,5.24470559,125.76,125.72,8.72]
[1765860486755,4.56470559,125.73,125.72,8.72]
[1765860486986,4.56470559,125.74,125.72,9.44]
[1765860487192,4.70686716,125.73,125.69,0.82]
[1765860487386,12.51952223,125.71,125.69,0.82]
[1765860487866,4.56470559,125.7,125.69,0.82]
[1765860489780,12.52015507,125.7,125.69,0.82]
[1765860490071,7.95544948,125.7,125.69,0.82]
[1765860490652,7.9550734,125.71,125.69,0.82]
[1765860490846,12.51977899,125.71,125.69,0.82]
[1765860492870,4.70686716,125.7,125.69,0.1]
[1765860493275,5.38686716,125.7,125.69,0.1]
[1765860493776,9.95157275,125.7,125.69,0.1]
[1765860494479,17.90702223,125.7,125.69,1e-08]
[1765860494845,26.62702223,125.7,125.69,1e-08]
[1765860495051,26.62702223,125.7,125.67,0.1]
[1765860495052,13.0470912,125.68,125.67,1e-08]
[1765860495250,26.47395836,125.68,125.67,1e-08]
[1765860495449,0.14216157,125.67,125.62,2.44766626]
[1765860495648,4.70686716,125.63,125.62,2.44766626]
[1765860496060,18.43395836,125.63,125.62,2.44766626]
[1765860496467,19.89804245,125.65,125.62,2.44766626]
[1765860496668,7.14,125.64,125.62,3.16766626]
[1765860496882,17.61179679,125.65,125.63,0.72]
[1765860497086,17.61179679,125.65,125.62,2.44766626]
[1765860497279,17.61179679,125.65,125.62,3.16766626]
[1765860497967,4.70686716,125.64,125.62,3.16766626]
[1765860498167,4.70686716,125.63,125.62,3.16766626]
[1765860499191,8.10204376,125.63,125.62,3.16766626]
[1765860499353,12.66674935,125.63,125.62,2.44766626]
[1765860499554,12.66674935,125.63,125.62,3.16766626]
[1765860500088,8.10204376,125.63,125.62,3.16766626]
[1765860500269,12.66674935,125.63,125.62,2.44766626]
[1765860500786,13.34674935,125.63,125.62,2.44766626]
[1765860501779,8.78204376,125.63,125.62,2.44766626]
[1765860501970,7.9594812,125.64,125.62,3.16766626]
[1765860502167,12.66634836,125.64,125.63,0.72]
[1765860502770,0.14216157,125.63,125.62,3.16766626]
[1765860503358,7.95881233,125.65,125.62,3.16766626]
[1765860503562,7.95881233,125.65,125.63,0.72]
[1765860504069,8.10036107,125.66,125.63,0.72]
[1765860504251,7.95740297,125.67,125.63,8.67963691]
[1765860504456,12.52765206,125.68,125.63,13.25049774]
[1765860504655,13.20765206,125.68,125.64,0.72]
[1765860505080,0.14216157,125.67,125.64,0.72]
[1765860505283,7.95679123,125.68,125.65,8.72]
[1765860505462,0.14216157,125.67,125.65,8.72]
[1765860505666,12.52765206,125.68,125.65,9.44]
[1765860505865,0.14216157,125.67,125.65,9.44]
[1765860507586,8.09964611,125.67,125.65,9.44]
[1765860507891,8.09964611,125.67,125.65,8.72]
[1765860508065,20.57087914,125.69,125.66,0.72]
[1765860508066,5.25086083,125.69,125.66,0.72]
[1765860508267,0.14216157,125.68,125.66,0.72]
[1765860508784,4.57086083,125.69,125.66,0.72]
[1765860508785,0.14216157,125.69,125.66,0.72]
[1765860508985,13.7270912,125.7,125.66,0.72]
[1765860508986,25.57367394,125.7,125.66,0.72]
[1765860509183,21.00281311,125.7,125.66,0.72]
[1765860509492,25.57367394,125.7,125.66,8.67775725]
[1765860509792,4.57086083,125.67,125.65,8.72]
[1765860509988,4.57086083,125.67,125.65,9.44]
[1765860510574,5.3930224,125.66,125.65,8.72]
[1765860511495,5.3930224,125.66,125.63,0.72]
[1765860511793,13.35157503,125.66,125.63,0.72]
[1765860511995,8.7807142,125.66,125.63,0.72]
[1765860512166,13.35157503,125.66,125.63,0.72]
[1765860512793,0.84216157,125.65,125.62,11.84766626]
[1765860513095,4.7130224,125.65,125.63,0.68]
[1765860513298,0.14216157,125.65,125.63,0.68]
[1765860513498,0.84216157,125.65,125.62,11.16766626]
[1765860513700,5.4130224,125.65,125.62,11.84766626]
[1765860513874,8.80097197,125.65,125.62,11.84766626]
[1765860514075,13.3718328,125.65,125.62,11.84766626]
[1765860515508,17.61795203,125.67,125.63,9.48994492]
[1765860515873,13.0470912,125.67,125.64,0.68]
[1765860516102,18.31795203,125.67,125.64,0.68]
[1765860516492,26.2756895,125.67,125.64,0.68]
[1765860516809,21.70482867,125.67,125.64,0.68]
[1765860517011,26.2756895,125.67,125.64,0.68]
[1765860517399,12.86999365,125.66,125.64,0.68]
[1765860518499,13.56999365,125.66,125.63,0.68]
[1765860518796,7.9586152,125.65,125.63,0.68]
[1765860519197,7.9586152,125.65,125.62,11.84766626]
[1765860519369,7.9586152,125.65,125.63,0.68]
[1765860521675,8.10038289,125.66,125.63,0.68]
[1765860522903,7.95763997,125.67,125.63,17.44981216]
[1765860523415,7.95763997,125.67,125.64,0.68]
[1765860523595,0.84216157,125.66,125.65,8.72]
[1765860523901,13.56999365,125.66,125.63,8.72]
[1765860524482,0.84216157,125.66,125.63,9.4]
[1765860524682,12.72783208,125.65,125.63,9.4]
[1765860524886,20.68682378,125.65,125.63,9.4]
[1765860525404,7.9589917,125.65,125.63,9.4]
[1765860526081,13.42783208,125.64,125.62,2.44766626]
[1765860527106,7.95988219,125.63,125.62,2.44766626]
[1765860528995,21.38738,125.64,125.62,2.44766626]
[1765860531005,13.56999365,125.63,125.62,2.44766626]
[1765860533407,20.82987584,125.63,125.62,2.44766626]
[1765860533908,34.57696704,125.63,125.62,1e-08]
[1765860534312,43.29696704,125.63,125.62,1e-08]
[1765860535629,52.10691196,125.63,125.62,1e-08]
[1765860536403,39.05982076,125.63,125.62,1e-08]
[1765860537023,39.05982076,125.63,125.57,0.1]
[1765860537024,12.72783208,125.58,125.57,0.1]
[1765860537523,13.56999365,125.58,125.57,0.1]
[1765860538909,21.53304509,125.58,125.57,0.1]
[1765860539227,13.0470912,125.55,125.51,0.68]
[1765860539431,4.57778107,125.55,125.52,0.68]
[1765860540112,4.57778107,125.55,125.49,33.40902819]
[1765860540113,0.84216157,125.54,125.49,0.78]
[1765860540327,0.14216157,125.5,125.49,0.1]
[1765860540504,0.14216157,125.5,125.49,0.78]
[1765860540827,4.71994264,125.5,125.49,0.1]
[1765860541027,8.667852,125.51,125.49,0.1]
[1765860541238,0.14216157,125.52,125.49,0.1]
[1765860541531,13.0470912,125.53,125.49,0.78]
[1765860541729,0.14216157,125.53,125.49,3.71050576]
[1765860542229,2.93050576,125.55,125.5,9.42]
[1765860542606,3.62050576,125.55,125.51,0.66]
[1765860542801,0.69,125.55,125.51,0.66]
[1765860543112,23.94074354,125.58,125.52,2.93050576]
[1765860543304,10.89365234,125.58,125.53,12.40045068]
[1765860543507,7.96229832,125.6,125.53,12.40045068]
[1765860543833,1.21324234,125.67,125.51,40.93309616]
[1765860543834,3.62050576,125.62,125.57,2.93050576]
[1765860544042,32.58446711,125.65,125.59,8.80994492]
[1765860544241,10.88912096,125.65,125.59,11.74045068]
[1765860544418,11.57912096,125.65,125.6,0.66]
[1765860544609,3.07266733,125.64,125.6,0.66]
[1765860544938,8.6486152,125.65,125.6,0.66]
[1765860545120,0.14216157,125.63,125.6,0.66]
[1765860545435,8.6486152,125.65,125.6,16.45654387]
[1765860545636,7.83493186,125.67,125.62,8.80994492]
[1765860545808,0.14216157,125.66,125.62,8.80994492]
[1765860546136,8.52493186,125.67,125.63,9.4]
[1765860546541,0.69,125.67,125.63,9.4]
[1765860546834,7.95737923,125.67,125.64,0.66]
[1765860547516,0.69,125.71,125.65,16.64487678]
[1765860547835,0.14216157,125.7,125.65,16.64487678]
[1765860548040,0.14216157,125.7,125.66,8.49493186]
[1765860548335,7.83493186,125.69,125.67,8.74]
[1765860548631,7.83493186,125.69,125.64,7.83493186]
[1765860548632,7.95734861,125.67,125.64,0.66]
[1765860548806,15.79228047,125.67,125.65,8.74]
[1765860549206,7.95734861,125.67,125.65,8.74]
[1765860549615,15.79228047,125.67,125.65,8.74]
[1765860549812,7.95734861,125.67,125.65,9.4]
[1765860550739,16.48228047,125.67,125.65,8.74]
[1765860551104,15.79228047,125.67,125.65,8.74]
[1765860551530,0.14216157,125.66,125.65,8.74]
[1765860551841,8.66709343,125.66,125.63,8.74]
[1765860552422,0.14216157,125.66,125.63,9.4]
[1765860552627,0.14216157,125.66,125.64,0.66]
[1765860554129,0.14216157,125.67,125.64,0.66]
[1765860554348,7.95681443,125.68,125.64,8.61907136]
[1765860554645,13.7370912,125.67,125.61,0.66]
[1765860554838,0.14216157,125.63,125.61,0.66]
[1765860555037,8.10210802,125.63,125.61,0.66]
[1765860555729,0.14216157,125.63,125.61,0.66]
[1765860556117,8.1020818,125.63,125.61,0.66]
[1765860556319,16.62701366,125.63,125.59,9.38]
[1765860556629,8.52493186,125.62,125.58,0.66]
[1765860556946,7.83493186,125.61,125.59,8.72]
[1765860557120,16.48665421,125.61,125.59,8.72]
[1765860557842,15.79665421,125.61,125.59,8.72]
[1765860558247,0.83216157,125.6,125.48,48.99191497]
[1765860558425,7.83493186,125.55,125.52,0.66]
[1765860558746,7.83493186,125.55,125.52,8.72]
[1765860558950,13.0470912,125.56,125.52,8.72]
[1765860559239,8.10736158,125.55,125.53,0.66]
[1765860559661,15.94229344,125.55,125.53,0.66]
[1765860559853,8.10736158,125.55,125.53,0.66]
[1765860560027,15.94229344,125.55,125.53,0.66]
[1765860560427,8.10736158,125.55,125.53,0.66]
[1765860561050,15.94229344,125.55,125.53,0.66]
[1765860561251,0.14216157,125.53,125.49,0.1]
[1765860561431,0.14216157,125.53,125.49,0.76]
[1765860561633,0.14216157,125.53,125.49,9.5]
[1765860561828,0.14216157,125.54,125.49,17.46869176]
[1765860562029,0.14216157,125.54,125.5,8.62811296]
[1765860562259,0.83216157,125.54,125.5,0.66]
[1765860562452,8.66709343,125.54,125.5,0.66]
[1765860562750,0.14216157,125.54,125.5,8.62802657]
[1765860562933,29.53647964,125.56,125.51,8.62698795]
[1765860563138,29.53647964,125.56,125.51,0.66]
[1765860563339,0.14216157,125.54,125.49,9.5]
[1765860563547,7.97709343,125.54,125.49,8.84]
[1765860563740,0.14216157,125.52,125.49,9.5]
[1765860563947,7.97709343,125.52,125.49,8.84]
[1765860564254,8.52493186,125.51,125.49,8.84]
[1765860564431,0.14216157,125.5,125.49,8.84]
[1765860565259,8.11028906,125.5,125.49,8.84]
[1765860565456,8.11028906,125.5,125.39,0.66]
[1765860565457,13.0470912,125.47,125.39,0.66]
[1765860565629,13.18925277,125.46,125.4,0.66]
[1765860565831,18.04546574,125.46,125.38,1.38]
[1765860566027,7.83493186,125.43,125.39,0.66]
[1765860566330,7.83493186,125.43,125.37,8.74]
[1765860566331,20.88202306,125.43,125.37,8.74]
[1765860566526,7.83493186,125.41,125.37,8.74]
[1765860566755,13.0470912,125.4,125.34,28.68566339]
[1765860566953,0.69,125.42,125.34,16.71820876]
[1765860566954,0.14216157,125.39,125.34,16.71820876]
[1765860567251,13.18925277,125.39,125.34,16.71820876]
[1765860567460,0.69,125.38,125.31,19.95031979]
[1765860567628,20.88202306,125.36,125.32,8.74]
[1765860567828,0.14216157,125.35,125.32,8.74]
[1765860568029,13.0470912,125.33,125.3,2.48936126]
[1765860568255,7.97709343,125.31,125.3,1.76936126]
[1765860568629,8.66709343,125.31,125.3,1.76936126]
[1765860568949,0.83216157,125.31,125.3,1.76936126]
[1765860569150,13.87925277,125.31,125.3,1.76936126]
[1765860569329,21.85946185,125.31,125.3,1.76936126]
[1765860569848,21.85946185,125.31,125.11,0.99999999]
[1765860569849,0.99999999,125.28,125.11,0.99999999]
[1765860570053,1.14216156,125.25,125.12,27.97314577]
[1765860570372,1.14216156,125.18,125.04,47.84854413]
[1765860570529,13.0470912,125.14,125.06,7.99598967]
[1765860570730,13.0470912,125.1,125.04,8.74]
[1765860570934,0.83216157,125.15,125.05,0.66]
[1765860571156,0.14216157,125.12,125.05,0.66]
[1765860571427,0.14216157,125.12,125.03,9.73999999]
[1765860571740,0.14216157,125.1,125.05,7.99651019]
[1765860571940,0.14216157,125.1,125.05,8.99651018]
[1765860572183,0.14216157,125.15,125.05,7.99651019]
[1765860572364,0.72,125.14,125.05,7.99651019]
[1765860572656,13.0470912,125.15,125.05,7.99651019]
[1765860572855,0.14216157,125.14,125.05,7.99651019]
[1765860573154,7.98946826,125.17,125.06,13.0470912]
[1765860573360,0.14216157,125.16,125.1,13.0470912]
[1765860573656,0.72,125.22,125.13,7.88323012]
[1765860573840,7.98558835,125.23,125.13,13.0470912]
[1765860574040,0.72,125.22,125.14,0.66]
[1765860574442,0.72,125.22,125.18,7.88323012]
[1765860574653,0.72,125.24,125.15,8.74]
[1765860574852,8.80994492,125.23,125.15,8.74]
[1765860575053,19.95848634,125.26,125.18,7.88323012]
[1765860575054,0.72,125.26,125.18,7.88323012]
[1765860575362,0.72,125.25,125.16,13.7070912]
[1765860575529,0.72,125.25,125.17,7.98873258]
[1765860575730,0.72,125.25,125.17,0.66]
[1765860575965,13.0470912,125.23,125.18,0.66]
[1765860576268,8.80994492,125.28,125.21,7.88323012]
[1765860576269,0.72,125.28,125.21,7.88323012]
[1765860576467,0.72,125.28,125.23,7.88323012]
[1765860576767,0.72,125.28,125.17,0.66]
[1765860576768,13.0470912,125.25,125.17,0.66]
[1765860576947,0.14216157,125.24,125.18,15.87152195]
[1765860577148,0.14216157,125.22,125.15,8.65005435]
[1765860577476,0.72,125.26,125.17,24.61216378]
[1765860577646,0.14216157,125.23,125.17,8.76]
[1765860577845,0.14216157,125.23,125.1,8.88323011]
[1765860577846,0.14216157,125.23,125.05,0.99999999]
[1765860578050,0.14216157,125.18,125.1,0.66]
[1765860578358,7.88323012,125.15,125.11,8.76]
[1765860578671,0.14216157,125.14,125.1,9.42]
[1765860578841,0.14216157,125.16,125.1,9.42]
[1765860579044,0.72,125.2,125.11,8.54323012]
[1765860579242,5.49654937,125.24,125.13,21.03877984]
[1765860579437,5.49654937,125.24,125.15,8.80994492]
[1765860579438,8.70493902,125.24,125.15,8.80994492]
[1765860579655,0.72,125.24,125.16,16.64323012]
[1765860579855,7.88323012,125.25,125.19,7.88323012]
[1765860580171,3.72,125.27,125.21,7.88323012]
[1765860580470,21.02869798,125.29,125.19,13.0470912]
[1765860580785,13.0470912,125.26,125.18,17.30323012]
[1765860581153,7.88323012,125.26,125.19,0.66]
[1765860581349,12.05617167,125.29,125.23,7.88323012]
[1765860581543,8.70090557,125.3,125.24,0.66]
[1765860581850,7.88323012,125.29,125.24,0.66]
[1765860582177,0.72,125.33,125.26,7.88323012]
[1765860582380,0.72,125.37,125.29,7.88323012]
[1765860582683,0.72,125.36,125.3,7.88323012]
[1765860582841,4.17067942,125.38,125.31,8.80994492]
[1765860583049,0.72,125.41,125.32,8.80994492]
[1765860583370,4.88878976,125.44,125.37,7.88323012]
[1765860583572,0.72,125.44,125.37,8.80994492]
[1765860583782,0.72,125.44,125.39,7.88323012]
[1765860584085,21.73909474,125.44,125.38,8.54323012]
[1765860584382,21.73909474,125.44,125.38,0.66]
[1765860584383,7.88323012,125.44,125.38,0.66]
[1765860584563,7.88323012,125.43,125.38,0.66]
[1765860584768,13.7670912,125.43,125.36,17.30323012]
[1765860585073,7.88323012,125.42,125.36,17.30323012]
[1765860585276,8.69329084,125.42,125.36,8.76]
[1765860585476,3.72,125.41,125.34,0.66]
[1765860585666,3.72,125.41,125.35,16.69317504]
[1765860585667,10.88323012,125.41,125.35,16.69317504]
[1765860585980,10.88323012,125.41,125.36,15.8600487]
[1765860585981,3.0,125.41,125.36,15.8600487]
[1765860586183,7.88323012,125.41,125.36,0.66]
[1765860586368,0.14216157,125.4,125.37,0.66]
[1765860586569,7.88323012,125.44,125.37,17.35317504]
[1765860586765,7.88323012,125.43,125.37,0.66]
[1765860586967,0.72,125.45,125.37,0.66]
[1765860586968,0.14216157,125.44,125.38,0.66]
[1765860587166,7.88323012,125.43,125.38,0.66]
[1765860587362,7.88323012,125.43,125.38,8.63545941]
[1765860587688,7.88323012,125.48,125.41,7.88323012]
[1765860587981,0.72,125.5,125.4,8.80994492]
[1765860587982,0.72,125.5,125.43,7.88323012]
[1765860588153,7.88323012,125.49,125.42,8.80994492]
[1765860588351,0.72,125.5,125.41,0.66]
[1765860588578,13.0470912,125.48,125.41,0.66]
[1765860588784,7.88323012,125.46,125.41,0.66]
[1765860588962,0.14216157,125.46,125.42,7.88323012]
[1765860589161,8.68750369,125.51,125.42,8.80994492]
[1765860589372,7.88323012,125.49,125.43,16.5154898]
[1765860589570,7.88323012,125.49,125.44,0.66]
[1765860589973,0.72,125.48,125.4,25.25762675]
[1765860590175,13.18925277,125.47,125.4,17.37439663]
[1765860590376,0.14216157,125.47,125.43,7.97240878]
[1765860590667,3.72,125.46,125.31,0.66]
[1765860590875,3.72,125.46,125.3,0.99999999]
[1765860591083,7.88323012,125.44,125.37,7.88323012]
[1765860591283,0.72,125.45,125.34,8.74]
[1765860591284,7.97257434,125.43,125.34,8.74]
[1765860591496,7.97257434,125.43,125.37,12.26015793]
[1765860591666,0.72,125.42,125.35,0.66]
[1765860592001,12.4023195,125.41,125.35,12.92015793]
[1765860592164,12.26015793,125.4,125.35,0.66]
[1765860592571,0.14216157,125.41,125.35,0.66]
[1765860592775,12.26015793,125.4,125.35,0.66]
[1765860592984,0.72,125.46,125.38,12.26015793]
[1765860593180,0.72,125.48,125.4,8.80994492]
[1765860593382,12.98015793,125.48,125.41,20.23400371]
[1765860593691,0.14216157,125.47,125.41,17.37384578]
[1765860593995,12.26015793,125.49,125.42,0.66]
[1765860594290,20.22915599,125.49,125.42,0.66]
[1765860594468,12.26015793,125.48,125.42,0.66]
[1765860594986,12.98015793,125.5,125.43,8.80994492]
[1765860595176,12.98015793,125.5,125.44,0.66]
[1765860595177,0.72,125.5,125.44,0.66]
[1765860595377,8.68839738,125.5,125.44,0.66]
[1765860595572,12.26015793,125.48,125.45,8.74]
[1765860596096,0.14216157,125.47,125.41,8.80994492]
[1765860596390,12.26015793,125.46,125.4,7.97430272]
[1765860596614,12.26015793,125.44,125.42,8.74]
[1765860597676,12.4023195,125.45,125.42,8.74]
[1765860597882,12.4023195,125.45,125.42,9.4]
[1765860598092,0.14216157,125.45,125.42,8.74]
[1765860598399,7.97079099,125.46,125.42,8.74]
[1765860598614,0.14216157,125.43,125.37,0.66]
[1765860598922,12.26015793,125.41,125.38,9.4]
[1765860599070,12.26015793,125.39,125.36,7.97694151]
[1765860599269,12.26015793,125.39,125.37,16.71624767]
[1765860599510,7.97321001,125.42,125.37,17.37624767]
[1765860599697,19.92949189,125.45,125.38,8.80994492]
[1765860599870,0.14216157,125.44,125.38,9.46994492]
[1765860600065,12.26015793,125.41,125.38,0.66]
[1765860600293,7.97231186,125.44,125.38,0.66]
[1765860600294,0.14216157,125.43,125.38,0.66]
[1765860600781,0.72,125.53,125.44,13.0470912]
[1765860600989,0.72,125.53,125.48,13.0470912]
[1765860601186,7.96558865,125.54,125.46,13.0470912]
[1765860601391,13.99503509,125.51,125.46,13.7070912]
[1765860601611,8.68558865,125.54,125.47,18.20994492]
[1765860601612,0.72,125.54,125.47,18.20994492]
[1765860601895,13.0470912,125.55,125.47,46.10499514]
[1765860602066,13.99503509,125.53,125.49,8.80994492]
[1765860602474,13.99503509,125.53,125.5,0.71]
[1765860602706,8.6844966,125.56,125.5,0.71]
[1765860602707,13.99503509,125.52,125.5,0.71]
[1765860602993,13.99503509,125.52,125.47,45.44499514]
[1765860603180,8.6544966,125.56,125.48,9.51994492]
[1765860603382,13.99503509,125.52,125.48,9.51994492]
[1765860603694,0.2,125.58,125.5,8.80994492]
[1765860603997,0.2,125.58,125.5,22.80498001]
[1765860603998,14.19503509,125.58,125.5,22.80498001]
[1765860604185,0.2,125.58,125.54,22.80498001]
[1765860604380,0.2,125.58,125.56,8.80994492]
[1765860604587,0.69,125.67,125.6,8.80994492]
[1765860604779,13.99503509,125.67,125.62,8.80994492]
[1765860604977,0.69,125.69,125.62,8.80994492]
[1765860605178,0.2,125.7,125.66,8.80994492]